[Event "Catalan University-ch 2024"]
[Site "Barcelona"]
[Date "2024.02.24"]
[Round "4.3"]
[White "Travesset Sagre, Jan"]
[Black "Marzo Pie, Xavier"]
[Result "1-0"]
[ECO "E33"]
[WhiteElo "2193"]
[BlackElo "2043"]
[Annotator "RC"]
[PlyCount "113"]
[EventDate "2024.02.24"]
[EventCountry "ESP"]
[SourceTitle "playchess.com"]
[Source "ChessBase"]
[SourceQuality "1"]
[TimeControl "600+2"]

1. d4 {[%emt 0:00:03]} Nf6 {[%emt 0:00:03]} 2. c4 {[%emt 0:00:01]} e6 {[%emt 0:00:02]} 3. Nc3 {[%emt 0:00:01]} Bb4 {[%emt 0:00:02]} 4. Qc2 {[%emt 0:00:07]} Nc6 {[%emt 0:00:01]} 5. Nf3 {[%emt 0:00:03]} d6 {[%emt 0:00:02]} 6. Bd2 {[%emt 0:00:07]} O-O {[%emt 0:00:09]} 7. a3 {[%emt 0:00:01]} Bxc3 {[%emt 0:00:02]} 8. Bxc3 {[%emt 0:00:01]} Qe7 {[%emt 0:00:01]} 9. e3 {[%emt 0:00:26]} a5 {[%emt 0:00:01]} 10. b3 {[%emt 0:00:21]} e5 {[%emt 0:00:01]} 11. dxe5 {[%emt 0:00:06]} dxe5 {[%emt 0:00:14]} 12. Be2 {[%emt 0:00:03]} Bg4 {[%emt 0:00:11]} 13. O-O {[%emt 0:00:27]} Rfe8 {[%emt 0:00:34]} 14. Bb2 {[%emt 0:00:35]} Bh5 {[%emt 0:00:37]} 15. Rad1 {[%emt 0:00:01]} Bg6 {[%emt 0:00:01]} 16. Qc1 {[%emt 0:00:06]} Ne4 {[%emt 0:00:28]} 17. Nd2 {[%emt 0:00:24]} Nc5 {[%emt 0:00:01]} 18. f3 {[%emt 0:00:46]} Rad8 {[%emt 0:00:25]} 19. e4 {[%emt 0:00:16]} Qg5 {[%emt 0:00:29]} 20. Qc3 {[%emt 0:00:21]} Nd4 {[%emt 0:00:28]} 21. Rfe1 {[%emt 0:00:23]} Nxe2+ {[%emt 0:01:09]} 22. Rxe2 {[%emt 0:00:02]} Rd3 {[%emt 0:00:01]} 23. Qc2 {[%emt 0:00:13]} Red8 {[%emt 0:00:00]} 24. Bc1 {[%emt 0:00:40]} Ne6 {[%emt 0:00:01]} 25. Nf1 {[%emt 0:00:27]} Rxd1 {[%emt 0:00:41]} 26. Bxg5 {[%emt 0:00:01]} Nxg5 {[%emt 0:00:00]} 27. Kf2 {[%emt 0:00:17]} R1d3 {[%emt 0:00:17]} 28. Rd2 {[%emt 0:00:14]} Rxd2+ {[%emt 0:00:04]} 29. Nxd2 {[%emt 0:00:01]} Ne6 {[%emt 0:00:00]} 30. Qc3 {[%emt 0:00:31]} b6 {[%emt 0:00:01]} 31. b4 {[%emt 0:00:14]} axb4 {[%emt 0:00:07]} 32. axb4 {[%emt 0:00:01]} f6 {[%emt 0:00:03]} 33. Nb3 {[%emt 0:00:08]} Bf7 {[%emt 0:00:01]} 34. c5 {[%emt 0:00:21]} b5 {[%emt 0:00:06]} 35. c6 {[%emt 0:00:12]} Nd4 {[%emt 0:00:01]} 36. Na5 {[%emt 0:00:24]} Rd6 {[%emt 0:00:20]} 37. Qc5 {[%emt 0:00:09]} Be8 {[%emt 0:00:01]} 38. f4 {[%emt 0:00:27]} exf4 {[%emt 0:00:21]} 39. e5 {[%emt 0:00:16]} fxe5 {[%emt 0:00:27]} 40. Qxe5 {[%emt 0:00:04]} Ne6 {[%emt 0:00:07]} 41. Qxb5 {[%emt 0:00:12]} Rd2+ {[%emt 0:00:04]} 42. Kf1 {[%emt 0:00:19]} Bg6 {[%emt 0:00:01]} 43. Qb8+ {[%emt 0:00:09]} Kf7 {[%emt 0:00:01]} 44. Nb7 {[%emt 0:00:06]} Bd3+ {[%emt 0:00:00]} 45. Ke1 {[%emt 0:01:25]} Re2+ 46. Kd1 {[%emt 0:00:00]} Rxg2 {[%emt 0:01:19]} 47. Nd8+ Nxd8 {[%emt 0:00:01]} 48. Qxd8 {[%emt 0:00:00]} Be2+ {[%emt 0:00:09]} 49. Ke1 {[%emt 0:00:00]} f3 {[%emt 0:00:01]} 50. Qxc7+ {[%emt 0:00:00]} Kg6 {[%emt 0:00:00]} 51. Qb6 {[%emt 0:00:00]} Kh5 {[%emt 0:00:38]} 52. c7 {[%emt 0:00:00]} Bc4 {[%emt 0:00:49]} 53. Qc5+ {[%emt 0:00:00]} Kg4 {[%emt 0:00:01]} 54. Qxc4+ {[%emt 0:00:00]} Kh3 {[%emt 0:00:01]} 55. c8=Q+ {[%emt 0:00:00]} Kxh2 {[%emt 0:00:04]} 56. Qh4+ {[%emt 0:00:00]} Kg1 {[%emt 0:00:01]} 57. Qc5+ {[%emt 0:00:00]} 1-0

[Event "Catalan University-ch 2024"]
[Site "Barcelona"]
[Date "2024.02.24"]
[Round "4.4"]
[White "Martinez Lopez, Carlos"]
[Black "Castillo Dalmau, Albert"]
[Result "0-1"]
[ECO "B42"]
[WhiteElo "2006"]
[BlackElo "2313"]
[Annotator "RC"]
[PlyCount "90"]
[EventDate "2024.02.24"]
[EventCountry "ESP"]
[SourceTitle "playchess.com"]
[Source "ChessBase"]
[SourceQuality "1"]
[TimeControl "600+2"]

1. e4 {[%emt 0:00:02]} b6 {[%emt 0:00:00]} 2. d4 {[%emt 0:10:04]} Bb7 3. Bd3 {[%emt 0:00:00]} e6 {[%emt 0:00:04]} 4. Nf3 {[%emt 0:00:00]} c5 {[%emt 0:00:14]} 5. Qe2 {[%emt 0:00:00]} cxd4 {[%emt 0:00:44]} 6. Nxd4 {[%emt 0:00:00]} a6 {[%emt 0:00:04]} 7. O-O {[%emt 0:00:00]} d6 {[%emt 0:00:10]} 8. c4 {[%emt 0:00:00]} Nd7 {[%emt 0:00:04]} 9. Nc3 {[%emt 0:00:00]} Ngf6 {[%emt 0:00:10]} 10. Bg5 {[%emt 0:00:00]} h6 {[%emt 0:00:07]} 11. Bh4 {[%emt 0:00:00]} g5 {[%emt 0:00:10]} 12. Bg3 {[%emt 0:00:00]} Ne5 {[%emt 0:00:19]} 13. Rad1 {[%emt 0:00:00]} Qc7 {[%emt 0:00:08]} 14. b3 {[%emt 0:00:00]} Be7 {[%emt 0:00:15]} 15. Kh1 {[%emt 0:00:00]} h5 {[%emt 0:00:39]} 16. f3 {[%emt 0:00:00]} h4 {[%emt 0:00:03]} 17. Bf2 {[%emt 0:00:00]} Nh5 {[%emt 0:00:19]} 18. Be3 {[%emt 0:00:00]} Bf6 {[%emt 0:04:42]} 19. Qd2 {[%emt 0:00:00]} Rg8 {[%emt 0:00:32]} 20. Nde2 {[%emt 0:00:00]} Nxd3 {[%emt 0:00:28]} 21. Qxd3 {[%emt 0:00:00]} Be5 {[%emt 0:00:01]} 22. Na4 {[%emt 0:00:00]} b5 {[%emt 0:00:16]} 23. cxb5 {[%emt 0:00:00]} axb5 {[%emt 0:00:01]} 24. Qxb5+ {[%emt 0:00:00]} Bc6 {[%emt 0:00:01]} 25. Qc4 {[%emt 0:00:00]} Qb7 {[%emt 0:00:10]} 26. Nec3 {[%emt 0:00:00]} h3 {[%emt 0:00:04]} 27. g4 {[%emt 0:00:05]} Nf4 {[%emt 0:00:06]} 28. Bxf4 {[%emt 0:00:05]} Bxf4 {[%emt 0:00:07]} 29. Rfe1 {[%emt 0:00:14]} Kf8 {[%emt 0:00:08]} 30. Qf1 {[%emt 0:00:05]} Rh8 {[%emt 0:00:03]} 31. Nb2 {[%emt 0:00:17]} Be5 {[%emt 0:00:03]} 32. Qd3 {[%emt 0:00:08]} Kg7 {[%emt 0:00:49]} 33. Nc4 {[%emt 0:00:01]} Bf4 {[%emt 0:00:04]} 34. Qd4+ {[%emt 0:00:05]} e5 {[%emt 0:00:05]} 35. Qd3 Rhd8 {[%emt 0:00:00]} 36. Rb1 {[%emt 0:00:04]} Qc7 {[%emt 0:00:04]} 37. Nd5 {[%emt 0:00:06]} Bxd5 38. Qxd5 Qc5 39. Qxc5 {[%emt 0:00:04]} dxc5 40. Red1 {[%emt 0:00:02]} Rxd1+ {[%emt 0:00:08]} 41. Rxd1 Rxa2 42. Rd5 {[%emt 0:00:04]} Rxh2+ {[%emt 0:00:04]} 43. Kg1 Rg2+ 44. Kf1 Ra2 45. Rxc5 {[%emt 0:00:06]} h2 0-1

[Event "Catalan University-ch 2024"]
[Site "Barcelona"]
[Date "2024.02.24"]
[Round "4.5"]
[White "Alfonso Pellisa, Aaron"]
[Black "Marabajan Navas, Saul"]
[Result "1-0"]
[ECO "B24"]
[WhiteElo "2090"]
[BlackElo "2036"]
[Annotator "NA"]
[PlyCount "73"]
[EventDate "2024.02.24"]
[EventCountry "ESP"]
[SourceTitle "playchess.com"]
[Source "ChessBase"]
[SourceQuality "1"]
[TimeControl "600+2"]

1. e4 {[%emt 0:00:02]} c5 {[%emt 0:00:01]} 2. Nc3 {[%emt 0:00:01]} Nc6 {[%emt 0:00:01]} 3. g3 {[%emt 0:00:01]} Rb8 {[%emt 0:00:01]} 4. Bg2 {[%emt 0:00:02]} b5 {[%emt 0:00:01]} 5. d3 {[%emt 0:00:02]} b4 {[%emt 0:00:09]} 6. Nce2 {[%emt 0:00:05]} g6 {[%emt 0:00:04]} 7. Be3 {[%emt 0:00:02]} d6 {[%emt 0:00:06]} 8. d4 {[%emt 0:00:14]} Qb6 {[%emt 0:02:30]} 9. Nf3 {[%emt 0:00:13]} Bg7 {[%emt 0:00:29]} 10. e5 {[%emt 0:01:06]} dxe5 {[%emt 0:00:25]} 11. dxc5 {[%emt 0:00:05]} Qc7 {[%emt 0:00:01]} 12. O-O {[%emt 0:00:08]} Nf6 {[%emt 0:00:14]} 13. Nd2 {[%emt 0:00:30]} Ba6 {[%emt 0:00:17]} 14. Re1 {[%emt 0:00:27]} Rd8 {[%emt 0:00:06]} 15. Qc1 {[%emt 0:00:05]} Nd4 {[%emt 0:00:32]} 16. Bxd4 {[%emt 0:00:41]} exd4 {[%emt 0:00:02]} 17. Nb3 {[%emt 0:00:02]} Bxe2 {[%emt 0:00:30]} 18. Rxe2 {[%emt 0:00:02]} O-O {[%emt 0:00:01]} 19. Qe1 {[%emt 0:00:15]} e6 {[%emt 0:00:50]} 20. Qxb4 {[%emt 0:00:06]} Nd5 {[%emt 0:00:14]} 21. Qa5 {[%emt 0:00:53]} Qb8 {[%emt 0:00:21]} 22. c6 {[%emt 0:00:19]} Nb6 {[%emt 0:00:53]} 23. Rd1 {[%emt 0:00:19]} e5 {[%emt 0:00:14]} 24. Qa6 {[%emt 0:00:32]} f5 {[%emt 0:01:11]} 25. a4 {[%emt 0:00:15]} Kh8 {[%emt 0:00:28]} 26. a5 {[%emt 0:01:31]} Nd5 {[%emt 0:00:16]} 27. Nc5 {[%emt 0:00:18]} Qxb2 {[%emt 0:00:13]} 28. Ne6 {[%emt 0:00:43]} Nc3 {[%emt 0:00:03]} 29. Rde1 {[%emt 0:00:05]} Nxe2+ {[%emt 0:00:07]} 30. Qxe2 {[%emt 0:00:03]} e4 {[%emt 0:00:10]} 31. Nxd8 {[%emt 0:00:10]} Rxd8 {[%emt 0:00:01]} 32. Qc4 {[%emt 0:00:16]} d3 {[%emt 0:00:20]} 33. c7 {[%emt 0:00:11]} Rc8 {[%emt 0:00:01]} 34. cxd3 {[%emt 0:00:05]} Qd2 {[%emt 0:00:09]} 35. Rb1 {[%emt 0:00:17]} Qxa5 {[%emt 0:00:07]} 36. Rb8 {[%emt 0:00:03]} Qa1+ {[%emt 0:00:02]} 37. Bf1 {[%emt 0:00:01]} 1-0

[Event "Catalan University-ch 2024"]
[Site "Barcelona"]
[Date "2024.02.24"]
[Round "4.6"]
[White "Roca Planas, Edgar"]
[Black "Pueyo Amoros, Pau"]
[Result "1/2-1/2"]
[ECO "B38"]
[WhiteElo "2248"]
[BlackElo "1858"]
[Annotator "TA"]
[PlyCount "185"]
[EventDate "2024.02.24"]
[EventCountry "ESP"]
[SourceTitle "playchess.com"]
[Source "ChessBase"]
[SourceQuality "1"]
[TimeControl "600+2"]

{[%evp 17,184,57,54,35,35,14,88,33,41,38,101,98,89,107,103,101,158,-15,-27,-18,-14,-68,-66,-120,-93,-94,0,0,0,-5,14,-5,-5,-6,-8,-69,-18,-15,-13,-20,-17,-17,-17,-99,-87,-91,-89,-216,-215,-218,-208,-220,-220,-235,-54,-55,-49,-66,-39,-35,-34,-93,-58,-70,-1,-8,0,0,0,0,0,-6,0,0,0,-108,8,8,8,8,8,0,0,0,0,0,0,0,91,55,29993,55,55,55,55,55,55,55,55,8,55,8,56,56,56,56,56,56,56,56,56,56,56,56,56,0,56,56,56,56,56,8,247,248,248,247,249,0,245,245,245,245,235,250,243,8,8,0,243,228,245,8,8,0,247,252,238,8,252,252,245,8,8,8,245,245,245,0,245,245,245,245,245,0,8,8,245,8,8]} 1. e4 {[%emt 0:00:02]} c5 {[%emt 0:00:02]} 2. Nf3 {[%emt 0:00:02]} d6 {[%emt 0:00:11]} 3. d4 {[%emt 0:00:02]} cxd4 {[%emt 0:00:02]} 4. Nxd4 {[%emt 0:00:02]} a6 {[%emt 0:00:03]} 5. c4 {[%emt 0:00:02]} Nf6 {[%emt 0:00:06]} 6. Nc3 {[%emt 0:00:01]} Nc6 {[%emt 0:00:05]} 7. Be2 {[%emt 0:00:05]} g6 {[%emt 0:00:11]} 8. Be3 {[%emt 0:00:04]} Bg7 {[%emt 0:00:02]} 9. O-O {[%emt 0:00:05]} O-O {[%emt 0:00:03]} 10. Nxc6 {[%emt 0:01:25]} bxc6 {[%emt 0:00:02]} 11. c5 {[%emt 0:00:00]} dxc5 {[%emt 0:01:57]} (11... d5 $11) 12. Qxd8 {[%emt 0:00:44]} (12. Qc2 $16) 12... Rxd8 $14 {[%emt 0:00:02]} 13. Bxc5 {[%emt 0:00:02][%cal Of1d1]} e5 {[%emt 0:00:30]} (13... Be6 $14) 14. Rfd1 $16 {[%emt 0:00:18]} Be6 {[%emt 0:00:14]} 15. Rxd8+ {[%emt 0:00:14]} Rxd8 {[%emt 0:00:02]} 16. Bxa6 {[%emt 0:00:08]} Rd2 {[%emt 0:00:30]} (16... Bf8 $142 17. Bxf8 Kxf8) 17. Rd1 $2 {[%emt 0:00:04]} (17. Rb1 $1 $16) 17... Rxd1+ $1 $11 {[%emt 0:00:09]} 18. Nxd1 {[%emt 0:00:01]} Nxe4 {[%emt 0:00:05]} (18... Bxa2 19. Nc3 Be6 20. Bd6 $15) 19. Be3 {[%emt 0:00:10]} (19. Ba3 $11) 19... Bxa2 $15 {[%emt 0:00:14]} 20. f3 {[%emt 0:00:01]} (20. Bb7 $15) 20... Nf6 {[%emt 0:00:05]} 21. Bb7 {[%emt 0:00:08]} Bd5 {[%emt 0:00:07]} (21... Bb3 $1 $17 {[%cal Rb3d1]} 22. Nc3 Nd5) 22. Nc3 $11 {[%emt 0:00:02]} Kf8 {[%emt 0:00:14]} 23. b4 {[%emt 0:00:01] Strongly threatening b5.} Ke8 {[%emt 0:00:02]} 24. b5 {[%emt 0:00:13]} (24. Bg5 {simplifies} Kd7 25. Bxf6 Bxf6 26. Nxd5 cxd5 27. Bxd5 Be7 28. Bxf7 Bxb4 29. Bg8) 24... Kd7 {[%emt 0:00:28]} 25. Nxd5 {[%emt 0:00:05]} cxd5 {[%emt 0:00:07][%mdl 4096] Endgame. KBB-KBN} 26. b6 {[%emt 0:01:34]} (26. Bd2 $11) 26... Bf8 {[%emt 0:00:18]} ({Better is} 26... Kd6 $1 $15 27. Bc8 d4) 27. Bg5 {[%emt 0:01:00]} Ke6 {[%emt 0:01:03]} 28. Bc8+ {[%emt 0:00:05]} Nd7 {[%emt 0:00:33] And now ...Bc5+ would win.} 29. b7 {[%emt 0:00:00]} Bd6 {[%emt 0:00:06]} 30. Bd8 {[%emt 0:00:14]} (30. f4 $11 {keeps the balance.}) 30... Bb8 $17 {[%emt 0:00:25]} 31. Kf2 {[%emt 0:00:02]} Kd6 {[%emt 0:00:02]} 32. Ke2 {[%emt 0:00:10]} (32. Ba5 $17 {might work better.}) 32... Nc5 $19 {[%emt 0:00:17]} 33. Bb6 {[%emt 0:00:40] [#]} Ne6 {[%emt 0:00:14]} 34. g3 {[%emt 0:00:21]} Kc6 {[%emt 0:00:03]} 35. Be3 {[%emt 0:01:32]} Nc5 $2 {[%emt 0:00:10]} ({Black should play} 35... Nd8 $19 36. h4 Nxb7) 36. Bxc5 $15 {[%emt 0:00:14]} Kxc5 {[%emt 0:00:02] KB-KB} 37. Ke3 {[%emt 0:00:09]} Kc4 {[%emt 0:00:12]} 38. Bd7 {[%emt 0:00:12]} Kc3 {[%emt 0:01:06]} 39. Bb5 {[%emt 0:00:15]} (39. Ke2 $15) 39... f6 {[%emt 0:00:02]} 40. Ke2 {[%emt 0:00:12]} d4 {[%emt 0:00:14]} (40... f5 $15) 41. Bd3 $11 {[%emt 0:00:02]} f5 {[%emt 0:00:06]} 42. h4 {[%emt 0:00:31]} Kb4 {[%emt 0:00:32]} 43. h5 {[%emt 0:00:03]} Kc5 {[%emt 0:00:16] next ...Kd5 is good for Black.} (43... gxh5 $6 44. Kd2 $16 (44. Bxf5 h6 $11)) 44. h6 {[%emt 0:00:01]} Kd5 {[%emt 0:00:03]} 45. Bc2 {[%emt 0:00:08]} Kc6 {[%emt 0:00:06]} 46. g4 {[%emt 0:00:03]} (46. Bb3 $11) 46... Kxb7 {[%emt 0:00:08]} (46... e4 $1 $17 {...d3+ is the strong threat.} 47. Bb3 d3+ (47... Kxb7 48. gxf5 d3+ 49. Ke3 $11) 48. Ke3 Ba7+ (48... Kxb7 49. fxe4 fxg4 50. Kxd3 $11) 49. Kd2 exf3 (49... Kxb7 50. gxf5 gxf5 51. fxe4 $11) 50. Kxd3 fxg4) 47. gxf5 {[%emt 0:00:02]} gxf5 48. Bxf5 {[%emt 0:00:01]} e4 {[%emt 0:00:04]} 49. Bxe4+ {[%emt 0:00:05]} (49. fxe4 Bf4) 49... Kb6 {[%emt 0:00:01]} 50. Bf5 {[%emt 0:00:01]} Be5 {[%emt 0:00:00]} 51. Kd3 {[%emt 0:00:01]} Kc5 {[%emt 0:00:01]} (51... Bf4 52. Kxd4 (52. Bxh7 Kc5 $11) 52... Bxh6 53. Kd3) 52. Bxh7 {[%emt 0:00:02] Hoping for Ke4.} Bh8 {[%emt 0:00:02]} (52... Bf4 $11) 53. Bf5 {[%emt 0:00:02]} Bg7 $2 {[%emt 0:00:02][%mdl 8192]} 54. h7 $2 {[%emt 0:00:04]} (54. hxg7 {mates} Kd5 55. g8=Q+ (55. g8=R Ke5 56. Rf8 Kd5 57. Re8 Kc5 58. Rc8+ Kb6 59. Kxd4 Kb5 60. Bd7+ Kb4) (55. Be4+ Kd6 56. g8=Q Kd7 57. Kxd4 Ke7 58. Qg7+ Kd6 59. Bb7 Ke6 60. Bc8+ Kd6 61. Qd7#) 55... Kd6 56. Kxd4 Kc7 57. Qg7+ Kb6 58. Kc4 (58. f4 Kb5 59. Qb7+ Ka4 60. Kc4 Ka5 61. Qb5#) 58... Ka6 59. Kc5 Ka5 60. Qa7#) 54... Kd5 {[%emt 0:00:01]} 55. Ke2 Ke5 {[%emt 0:00:10]} 56. Be4 {[%emt 0:00:03]} Kf4 {[%emt 0:00:00]} 57. Kd3 {[%emt 0:00:01]} Ke5 {[%emt 0:00:00]} 58. Kc4 {[%emt 0:00:00]} (58. Kc2 $14) 58... Ke6 {[%emt 0:00:00]} (58... Kf4 $11) 59. Kc5 {[%emt 0:00:03]} (59. Bc2 $14 {is more appropriate.}) 59... Ke7 {[%emt 0:00:00]} (59... Ke5 $11) 60. Kd5 $14 {[%emt 0:00:02]} Kf7 {[%emt 0:00:00]} (60... d3 $2 61. Bxd3 Kf7 62. Ke4 $16) 61. Bd3 {[%emt 0:00:04]} Ke7 {[%emt 0:00:00]} 62. Ke4 {[%emt 0:00:01]} Kd6 {[%emt 0:00:02]} 63. Kf5 {[%emt 0:00:02]} Ke7 {[%emt 0:00:02]} 64. Kg6 {[%emt 0:00:01]} Bh8 {[%emt 0:00:02]} 65. Be4 {[%emt 0:00:02]} Ke6 {[%emt 0:00:03]} 66. Bd3 {[%emt 0:00:01]} Ke7 {[%emt 0:00:01]} 67. Bc4 {[%emt 0:00:01]} Kf8 {[%emt 0:00:03]} 68. f4 {[%emt 0:00:04]} (68. Bd3 Ke7 $11) 68... Ke7 {[%emt 0:00:01]} 69. f5 {[%emt 0:00:02]} (69. Bd3 $14 {was preferrable.}) 69... Kf8 $2 {[%emt 0:00:02]} (69... Be5 $11) 70. f6 $18 {[%emt 0:00:02]} Ke8 {[%emt 0:00:02] [#]} 71. Bb5+ $1 {[%emt 0:00:03]} Kf8 {[%emt 0:00:03]} 72. Bc4 {[%emt 0:00:02]} (72. Bd3 Ke8 73. Bb5+ Kf8 $18) 72... Ke8 {[%emt 0:00:01]} 73. Kf5 {[%emt 0:00:01]} Kf8 {[%emt 0:00:04]} 74. Bg8 {[%emt 0:00:02]} Ke8 {[%emt 0:00:02]} 75. Be6 {[%emt 0:00:04]} Kf8 {[%emt 0:00:01]} 76. Bd7 $2 {[%emt 0:00:02]} (76. Bc4 $18) 76... Kf7 $1 $11 {[%emt 0:00:02]} (76... d3 $2 77. Kg6 $18) 77. Be6+ $2 {[%emt 0:00:01]} (77. Bb5 $1 $11) 77... Kf8 $18 {[%emt 0:00:01]} 78. Bc4 {[%emt 0:00:02]} Ke8 {[%emt 0:00:01]} 79. Bd3 $2 {[%emt 0:00:02]} (79. Ke5 $18) 79... Kf7 $11 {[%emt 0:00:01]} 80. Bc4+ $2 {[%emt 0:00:01]} (80. Bc2 $11) 80... Kf8 $18 {[%emt 0:00:01]} 81. Ke5 {[%emt 0:00:03]} Ke8 {[%emt 0:00:03]} 82. Bd3 $2 {[%emt 0:00:02]} (82. Ke6 $18) 82... Kf8 $2 {[%emt 0:00:02]} (82... Kf7 $11) 83. Bg6 {[%emt 0:00:02]} ({Weaker is} 83. Kxd4 Bxf6+ 84. Ke4 Ke7 $11 (84... Bh8 85. Kf3 $11)) ({Less strong is} 83. Ke6 Ke8 84. Bf5 d3 85. Bg6+ (85. Bxd3 Kf8 $18) 85... Kf8 86. Bxd3 Ke8 $16) 83... d3 {[%emt 0:00:02]} 84. Bxd3 $2 {[%emt 0:00:01]} (84. Bh5 $18) 84... Kf7 $11 {[%emt 0:00:01]} 85. Bc4+ {[%emt 0:00:02]} Kf8 $2 {[%emt 0:00:02]} (85... Kg6 $11 {and Black is okay.}) 86. Kf5 $18 {[%emt 0:00:02]} Ke8 {[%emt 0:00:01]} 87. Ke5 {[%emt 0:00:04]} Kf8 {[%emt 0:00:03]} 88. Ke6 {[%emt 0:00:01]} Ke8 {[%emt 0:00:01]} 89. Bd3 {[%emt 0:00:01]} Kf8 {[%emt 0:00:03]} 90. Ke5 $2 {[%emt 0:00:04]} (90. Be2 $18) 90... Ke8 {[%emt 0:00:03]} 91. Be4 {[%emt 0:00:02] Ke6 would now be deadly.} (91. Be2 $5 Kf7 $8 92. Bh5+ Kf8 93. Kf5 $14) 91... Kf8 $2 {[%emt 0:00:02]} (91... Kf7 $1 $11 {and Black has nothing to worry.}) 92. Bg6 $2 {[%emt 0:00:01]} ({White should try} 92. Ke6 $18) 92... Bxf6+ $11 {[%emt 0:00:03]} 93. Kxf6 {[%emt 0:00:02] Both players deserved the win here.   Weighted Error Value: White=0.34/Black=0.35.  Loses game:     	---       	Black=5      Missed win:     	White=7     	Black=1      Mistake:       	White=14    	Black=10     Inaccurate:     	White=1     	Black=2      OK:         	White=22    	Black=23     Best:        	White=2     	Black=14     Strong:       	White=1     	Black=2} 1/2-1/2

[Event "Catalan University-ch 2024"]
[Site "Barcelona"]
[Date "2024.02.24"]
[Round "4.7"]
[White "Sole Pijuan, Ferran"]
[Black "Espelt Granes, Esteve"]
[Result "1-0"]
[ECO "A84"]
[WhiteElo "2136"]
[BlackElo "1934"]
[Annotator "NA RC"]
[PlyCount "39"]
[EventDate "2024.02.24"]
[EventCountry "ESP"]
[SourceTitle "playchess.com"]
[Source "ChessBase"]
[SourceQuality "1"]
[TimeControl "600+2"]

1. d4 {[%emt 0:00:03]} e6 {[%emt 0:00:02]} 2. c4 {[%emt 0:00:03]} f5 {[%emt 0:00:02]} 3. Nf3 {[%emt 0:00:26]} Nf6 {[%emt 0:00:04]} 4. Bf4 {[%emt 0:00:18]} b6 {[%emt 0:00:27]} 5. e3 {[%emt 0:00:17]} Bb7 {[%emt 0:00:02]} 6. a3 {[%emt 0:00:08]} a5 {[%emt 0:00:25]} 7. h4 {[%emt 0:00:08]} d6 {[%emt 0:00:23]} 8. h5 {[%emt 0:00:04]} Nbd7 {[%emt 0:00:14]} 9. Nc3 {[%emt 0:00:19]} Be7 {[%emt 0:00:22]} 10. Ng5 {[%emt 0:01:04]} Nf8 {[%emt 0:00:06]} 11. Be2 {[%emt 0:00:29]} Ne4 {[%emt 0:00:20]} 12. Ngxe4 {[%emt 0:00:11]} fxe4 {[%emt 0:00:07]} 13. Qc2 {[%emt 0:00:44]} Bg5 {[%emt 0:01:28]} 14. Bg3 {[%emt 0:00:08]} Nd7 {[%emt 0:00:26]} 15. Nxe4 {[%emt 0:00:04]} Bh6 {[%emt 0:00:02]} 16. Bh4 {[%emt 0:00:20]} Qc8 {[%emt 0:01:14]} 17. Bg4 {[%emt 0:00:08]} Nf8 {[%emt 0:00:16]} 18. d5 {[%emt 0:00:23]} a4 {[%emt 0:00:35]} 19. Nc3 {[%emt 0:00:11]} Qd7 {[%emt 0:00:19]} 20. Nb5 {[%emt 0:00:12]} 1-0

[Event "Catalan University-ch 2024"]
[Site "Barcelona"]
[Date "2024.02.24"]
[Round "4.8"]
[White "Ruiz Lupon, Neri"]
[Black "Sayrol Clols, Josep Maria"]
[Result "1-0"]
[ECO "B25"]
[WhiteElo "1968"]
[BlackElo "1991"]
[Annotator "NA"]
[PlyCount "78"]
[EventDate "2024.02.24"]
[EventCountry "ESP"]
[SourceTitle "playchess.com"]
[Source "ChessBase"]
[SourceQuality "1"]
[TimeControl "600+2"]

1. e4 {[%emt 0:00:03]} c5 {[%emt 0:00:01]} 2. Nc3 {[%emt 0:00:03]} Nc6 {[%emt 0:00:03]} 3. g3 {[%emt 0:00:02]} g6 {[%emt 0:00:04]} 4. Bg2 {[%emt 0:00:03]} Bg7 {[%emt 0:00:03]} 5. d3 {[%emt 0:00:03]} d6 {[%emt 0:00:03]} 6. Nge2 {[%emt 0:00:18]} Nf6 {[%emt 0:00:08]} 7. O-O {[%emt 0:00:04]} O-O {[%emt 0:00:03]} 8. f4 {[%emt 0:00:04]} Nd4 {[%emt 0:00:26]} 9. h3 {[%emt 0:00:07]} a6 {[%emt 0:00:15]} 10. g4 {[%emt 0:00:03]} Rb8 {[%emt 0:00:21]} 11. Ng3 {[%emt 0:00:03]} b5 {[%emt 0:00:46]} 12. g5 {[%emt 0:00:54]} Ne8 {[%emt 0:00:42]} 13. Nd5 {[%emt 0:00:10]} e6 {[%emt 0:00:15]} 14. Ne3 {[%emt 0:00:04]} Bb7 {[%emt 0:00:41]} 15. c3 {[%emt 0:00:11]} Nc6 {[%emt 0:00:20]} 16. Ng4 {[%emt 0:00:06]} f5 {[%emt 0:00:08]} 17. gxf6 {[%emt 0:00:31]} Nxf6 {[%emt 0:00:03]} 18. Qb3 {[%emt 0:00:13]} d5 {[%emt 0:00:13]} 19. Nxf6+ {[%emt 0:00:11]} Bxf6 {[%emt 0:00:25]} 20. exd5 {[%emt 0:00:02]} Na5 {[%emt 0:00:02]} 21. Qa3 {[%emt 0:00:14]} b4 {[%emt 0:01:03]} 22. cxb4 {[%emt 0:00:24]} cxb4 {[%emt 0:00:03]} 23. Qa4 {[%emt 0:00:08]} Bxd5 {[%emt 0:00:09]} 24. Ne4 {[%emt 0:00:13]} Bd4+ {[%emt 0:00:52]} 25. Kh1 {[%emt 0:00:35]} Bc6 {[%emt 0:00:10]} 26. Qd1 {[%emt 0:00:11]} Qh4 {[%emt 0:00:05]} 27. Qg4 {[%emt 0:00:03]} Qxg4 {[%emt 0:00:16]} 28. hxg4 {[%emt 0:00:02]} Kg7 {[%emt 0:00:01]} 29. Rb1 {[%emt 0:00:23]} b3 {[%emt 0:00:16]} 30. a3 {[%emt 0:00:18]} Bd5 {[%emt 0:00:10]} 31. Bd2 {[%emt 0:00:03]} Bb6 {[%emt 0:00:25]} 32. Bc3+ {[%emt 0:00:09]} Kf7 {[%emt 0:00:27]} 33. Ng5+ {[%emt 0:00:54]} Kg8 {[%emt 0:00:01]} 34. Rbe1 {[%emt 0:00:16]} Rbe8 {[%emt 0:00:03]} 35. Ne4 {[%emt 0:00:17]} Bxe4 {[%emt 0:00:30]} 36. dxe4 {[%emt 0:00:09]} Nc6 {[%emt 0:00:05]} 37. Rd1 {[%emt 0:00:11]} Rd8 {[%emt 0:00:01]} 38. e5 {[%emt 0:01:09]} Nd4 {[%emt 0:00:02]} 39. Bb7 {[%emt 0:00:37]} Nc2 {[%emt 0:00:10]} 1-0